fUST/lending_fUST_20260105
["ID","MTS","AMOUNT","RATE_DAILY","PERIOD"]
[400430211,1767542490567,200.0,0.00029607,120]
[400430213,1767542523620,5000.0,0.00010375,2]
[400430216,1767542547509,3429.38,0.00010375,2]
[400430217,1767542550566,200.0,0.00021929,120]
[400430228,1767542610610,200.0,0.00027846,120]
[400430229,1767542614840,1010.0,0.0003,120]
[400430231,1767542717212,500.56240568,0.0001,2]
[400430232,1767542729685,1570.62,0.00011,10]
[400430234,1767542752800,5000.0,0.00011,10]
[400430235,1767542790888,200.0,0.00029323,120]
[400430240,1767542899480,-5000.0,0.00010457,2]
[400430241,1767542899979,-360.79242915,0.0001051,2]
[400430242,1767542900067,-269.82,0.00010563,2]
[400430243,1767542909983,-5456.11932012,0.00010678,2]
[400430244,1767542910200,-10000.01,0.00010678,2]
[400430264,1767543031778,-300.0,0.00010676,2]
[400430266,1767543031788,-214.69717787,0.00010676,2]
[400430271,1767543031821,-355.30282213,0.00010676,2]
[400430273,1767543031832,-69.6826205,0.00010676,2]
[400430277,1767543031868,-359.3173795,0.00010676,2]
[400430279,1767543031879,-300.0,0.00010676,2]
[400430281,1767543031890,-590.18953446,0.00010677,2]
[400430283,1767543031902,-676.86954065,0.00010677,2]
[400430286,1767543031917,-166.56699441,0.00010677,2]
[400430288,1767543031929,-333.43300559,0.00010677,2]
[400430290,1767543031940,-228.13422867,0.00010677,2]
[400430292,1767543031950,-401.33760316,0.00010677,2]
[400430439,1767543037890,-98.66239684,0.00010677,2]
[400430440,1767543037902,-500.0,0.00010677,2]
[400430442,1767543037912,-500.0,0.00010677,2]
[400430444,1767543037922,-500.0,0.00010677,2]
[400430446,1767543037931,-500.0,0.00010677,2]
[400430447,1767543037941,-500.0,0.00010677,2]
[400430448,1767543037950,-500.0,0.00010677,2]
[400430449,1767543037960,-500.0,0.00010677,2]
[400430450,1767543037970,-500.0,0.00010677,2]
[400430451,1767543037979,-500.0,0.00010677,2]
[400430452,1767543037990,-500.0,0.00010677,2]
[400430453,1767543037999,-500.0,0.00010677,2]
[400430454,1767543038009,-500.0,0.00010677,2]
[400430455,1767543038019,-500.0,0.00010677,2]
[400430456,1767543038028,-500.0,0.00010677,2]
[400430457,1767543038038,-500.0,0.00010677,2]
[400430458,1767543038047,-398.71759199,0.00010677,2]
[400430459,1767543038057,-946299.15636531,0.00010678,2]
[400430460,1767543038077,-12233.18313768,0.00010678,2]
[400430461,1767543038089,-986.95716686,0.00010678,2]
[400430462,1767543038100,-1273.6685903,0.00010678,2]
[400430482,1767543040338,-10958.28969146,0.00010678,2]
[400430483,1767543040462,-7505.6820781,0.00010678,2]
[400430488,1767543043293,181.57,7.914e-05,2]
[400430489,1767543043694,226.96,8.244e-05,2]
[400430498,1767543044098,272.35,8.574e-05,2]
[400430503,1767543044601,317.74,8.903e-05,2]
[400430504,1767543045022,363.14,9.233e-05,2]
[400430505,1767543045445,408.53,9.563e-05,2]
[400430509,1767543045861,453.92,9.893e-05,2]
[400430511,1767543046192,-5286.93365017,0.00010678,2]
[400430512,1767543046202,-7642.04342479,0.00010859,2]
[400430513,1767543046212,-999.0,0.00010959,2]
[400430514,1767543046221,-500.0,0.00010959,2]
[400430515,1767543046231,-500.0,0.00010959,2]
[400430516,1767543046241,-500.0,0.00010959,2]
[400430517,1767543046251,-496.93239353,0.00010959,2]
[400430518,1767543046261,-300.0,0.00010992,2]
[400430519,1767543046270,-300.0,0.00010992,2]
[400430520,1767543046280,-300.0,0.00010992,2]
[400430521,1767543046290,-300.0,0.00010992,2]
[400430522,1767543046299,-300.0,0.00010992,2]
[400430523,1767543046309,-300.0,0.00010992,2]
[400430524,1767543046318,-300.0,0.00010992,2]
[400430525,1767543046327,-300.0,0.00010992,2]
[400430526,1767543046337,-300.0,0.00010992,2]
[400430527,1767543046347,-300.0,0.00010992,2]
[400430528,1767543046356,-300.0,0.00010992,2]
[400430529,1767543046366,-300.0,0.00010992,2]
[400430530,1767543046375,-300.0,0.00010992,2]
[400430531,1767543046385,-300.0,0.00010992,2]
[400430532,1767543046394,-300.0,0.00010992,2]
[400430533,1767543046404,-600.0,0.00010992,2]
[400430534,1767543046415,-420.0,0.00011736,2]
[400430535,1767543046425,-500.0,0.00011923,2]
[400430536,1767543046434,-500.0,0.0001206,2]
[400430537,1767543046443,-720.0,0.00012091,2]
[400430538,1767543046452,-500.0,0.00012197,2]
[400430539,1767543046462,-500.0,0.00012329,2]
[400430540,1767543046471,-500.0,0.00012329,2]
[400430541,1767543046482,-500.0,0.00012329,2]
[400430542,1767543046491,-500.0,0.00012329,2]
[400430543,1767543046500,-500.0,0.00012329,2]
[400430544,1767543046510,-500.0,0.00012329,2]
[400430545,1767543046519,-647.84860215,0.00012329,2]
[400430546,1767543046529,-500.0,0.00012329,2]
[400430547,1767543046538,-500.0,0.00012329,2]
[400430548,1767543046548,-500.0,0.00012329,2]
[400430549,1767543046558,-500.0,0.00012329,2]
[400430550,1767543046567,-500.0,0.00012329,2]
[400430551,1767543046576,-500.0,0.00012329,2]
[400430552,1767543046586,-500.0,0.00012329,2]
[400430553,1767543046595,-500.0,0.00012329,2]
[400430554,1767543046605,-500.0,0.00012329,2]
[400430555,1767543046615,-500.0,0.00012329,2]
[400430556,1767543046625,-500.0,0.00012329,2]
[400430557,1767543046635,-500.0,0.00012329,2]
[400430558,1767543046644,-500.0,0.00012329,2]
[400430559,1767543046654,-500.0,0.00012329,2]
[400430560,1767543046663,-500.0,0.00012329,2]
[400430561,1767543046672,-500.0,0.00012329,2]
[400430562,1767543046682,-500.0,0.00012329,2]
[400430563,1767543046691,-500.0,0.00012329,2]
[400430564,1767543046701,-500.0,0.00012329,2]
[400430565,1767543046711,-500.0,0.00012329,2]
[400430566,1767543046720,-500.0,0.00012329,2]
[400430567,1767543046730,-500.0,0.00012329,2]
[400430568,1767543046740,-500.0,0.00012329,2]
[400430569,1767543046749,-500.0,0.00012329,2]
[400430570,1767543046759,-500.0,0.00012329,2]
[400430571,1767543046769,-500.0,0.00012329,2]
[400430572,1767543046778,-500.0,0.00012329,2]
[400430573,1767543046788,-500.0,0.00012329,2]
[400430574,1767543046798,-500.0,0.00012329,2]
[400430575,1767543046807,-500.0,0.00012329,2]
[400430576,1767543046816,-500.0,0.00012329,2]
[400430577,1767543046826,-500.0,0.00012329,2]
[400430578,1767543046836,-500.0,0.00012329,2]
[400430579,1767543046845,-500.0,0.00012329,2]
[400430580,1767543046855,-500.0,0.00012329,2]
[400430581,1767543046866,-500.0,0.00012329,2]
[400430582,1767543046875,-500.0,0.00012329,2]
[400430583,1767543046886,-500.0,0.00012329,2]
[400430584,1767543046895,-500.0,0.00012329,2]
[400430585,1767543046904,-500.0,0.00012329,2]
[400430586,1767543046914,-500.0,0.00012329,2]
[400430587,1767543046924,-500.0,0.00012329,2]
[400430588,1767543046934,-500.0,0.00012329,2]
[400430589,1767543046943,-500.0,0.00012329,2]
[400430590,1767543046953,-500.0,0.00012329,2]
[400430591,1767543046963,-500.0,0.00012329,2]
[400430592,1767543046972,-500.0,0.00012329,2]
[400430593,1767543046981,-500.0,0.00012334,2]
[400430594,1767543046991,-500.0,0.00012471,2]
[400430595,1767543047000,-425.73506639,0.0001251,2]
[400430596,1767543047010,-500.0,0.00012608,2]
[400430597,1767543047020,-500.0,0.00012745,2]
[400430598,1767543047029,-33911.29662659,0.0001287,2]
[400430599,1767543047039,-292.0,0.00012882,2]
[400430600,1767543047049,-6320.59258543,0.000129,2]
[400430602,1767543106638,172.48614771,0.00027741,120]
[400430604,1767543149789,155.0,8e-05,2]
[400430605,1767543167377,7620.8,0.0001029,2]
[400430606,1767543167476,1435.2,0.0001029,2]
[400430608,1767543244503,155.0,8e-05,2]
[400430609,1767543246743,168.2,8.104e-05,2]
[400430610,1767543247145,210.26,8.441e-05,2]
[400430611,1767543247605,252.31,8.779e-05,2]
[400430612,1767543248036,294.36,9.117e-05,2]
[400430613,1767543248442,336.41,9.454e-05,2]
[400430614,1767543248995,378.46,9.792e-05,2]
[400430615,1767543249413,420.51,0.0001013,2]
[400430616,1767543411619,5000.0,0.0001029,2]
[400430617,1767543540590,155.0,8e-05,2]
[400430618,1767543735431,2658.380862,9.658e-05,2]
[400430619,1767543828281,155.0,8e-05,2]
[400430626,1767544029814,500.0,0.00030137,120]
[400430628,1767544079621,155.0,8e-05,2]
[400430633,1767544206292,155.0,8e-05,2]
[400430652,1767544231982,-8799.0,0.00010478,2]
[400430719,1767544240405,-159.69396007,0.00010477,2]
[400430721,1767544240417,-449.61160591,0.00010477,2]
[400430760,1767544313575,180.57,8.331e-05,2]
[400430761,1767544316668,225.71,8.679e-05,2]
[400430762,1767544317083,270.85,9.026e-05,2]
[400430763,1767544317522,315.99,9.373e-05,2]
[400430764,1767544318001,361.13,9.72e-05,2]
[400430765,1767544318427,367.379138,0.00010067,2]
[400430766,1767544318499,38.890862,0.00010067,2]
[400430814,1767544386369,173.46,9.414e-05,2]
[400430815,1767544386773,198.24,9.762e-05,2]
[400430816,1767544387175,223.02,0.00010111,2]
[400430821,1767544455891,152.27197751,0.00010248,2]
[400430822,1767544480066,9214.12716049,0.0001029,2]
[400430823,1767544480108,785.87283951,0.0001029,2]
[400430828,1767544672638,224.31117178,0.00023849,120]
[400430829,1767544673974,155.0,8e-05,2]
[400430833,1767544866928,247.61497967,0.00010035,2]
[400430874,1767545351485,265.78691364,0.0003,120]
[400430875,1767545375681,-300.0,0.00010377,2]
[400430876,1767545375705,-500.0,0.00010377,2]
[400430877,1767545375728,-100.0,0.00010377,2]
[400430890,1767545432047,-300.0,0.00010376,2]
[400430893,1767545432061,-185.50900871,0.00010376,2]
[400430898,1767545432102,-379.49099129,0.00010376,2]
[400430901,1767545432116,-400.0,0.00010377,2]
[400430903,1767545432128,-165.97758853,0.00010377,2]
[400430909,1767545432181,-334.02241147,0.00010377,2]
[400430912,1767545432195,-500.0,0.00010377,2]
[400430917,1767545432208,-500.0,0.00010377,2]
[400430920,1767545432223,-500.0,0.00010377,2]
[400430923,1767545432237,-500.0,0.00010377,2]
[400430927,1767545432251,-328.68610714,0.00010377,2]
[400430937,1767545438264,-171.31389286,0.00010377,2]
[400430938,1767545438275,-500.0,0.00010377,2]
[400430939,1767545438285,-500.0,0.00010377,2]
[400430940,1767545438557,-598.20580877,0.00010377,2]
[400430941,1767545438592,-153.97622737,0.00010377,2]
[400430962,1767545445306,-43.26921718,0.00010377,2]
[400430963,1767545445315,-444.35060348,0.00010377,2]
[400430979,1767545446473,-55.64939652,0.00010377,2]
[400430980,1767545446483,-500.0,0.00010377,2]
[400430981,1767545446493,-500.0,0.00010377,2]
[400430982,1767545446503,-411.66235528,0.00010377,2]
[400430983,1767545453651,172.7,9.723e-05,2]
[400430984,1767545454081,197.37,0.00010083,2]
[400430986,1767545522672,159.69,0.00010046,2]
[400430988,1767545594554,500.0,0.00030137,120]
[400430989,1767545595863,982.14390041,9.677e-05,2]
[400430990,1767545669633,5000.0,0.0001029,2]
[400430992,1767545693452,5000.0,0.0001029,2]
[400430993,1767545721850,193.71,8.588e-05,2]
[400430994,1767545722724,242.14,8.946e-05,2]
[400430995,1767545723148,290.57,9.303e-05,2]
[400430996,1767545723600,339.0,9.661e-05,2]
[400430997,1767545723992,387.43,0.00010019,2]
[400430998,1767545786249,813.07431992,9.665e-05,2]
[400430999,1767545793341,179.62,9.351e-05,2]
[400431000,1767545793739,209.56,9.711e-05,2]
[400431001,1767545794180,239.5,0.00010071,2]
[400431002,1767545862355,153.55,9.687e-05,2]
[400431003,1767545862757,175.49,0.00010046,2]
[400431006,1767545931830,159.73,0.00010064,2]
[400431009,1767546004996,193.93872878,0.00010011,2]
[400431013,1767546122598,193.93872878,0.00010011,2]
[400431014,1767546145718,155.0,8.246e-05,2]
[400431015,1767546148119,1073.75822252,0.0001029,2]
[400431016,1767546148141,3926.24177748,0.0001029,2]
[400431017,1767546171758,3429.38,0.0001029,2]
[400431018,1767546273131,2644.38822252,0.00010278,2]
[400431019,1767546273159,10000.01,0.00010278,2]
[400431020,1767546273184,10000.01,0.00010278,2]
[400431021,1767546273208,10000.01,0.00010278,2]
[400431022,1767546273232,10000.01,0.00010278,2]
[400431023,1767546273257,10000.01,0.00010278,2]
[400431024,1767546273283,10000.01,0.00010278,2]
[400431025,1767546273309,10000.01,0.00010278,2]
[400431026,1767546273339,927355.54177748,0.00010278,2]
[400431029,1767546424717,72644.45822252,0.00010278,2]
[400431030,1767546471329,-8648.91828041,0.00010278,2]
[400431031,1767546471480,-10000.01,0.00010278,2]
[400431032,1767546479806,-4279.54431788,0.00010221,2]
[400431033,1767546479841,-1440.92136424,0.00010278,2]
[400431034,1767546500025,-300.0,0.00010277,2]
[400431035,1767546500054,-1200.0,0.00010277,2]
[400431036,1767546500109,-7000.01,0.00010278,2]
[400431037,1767546521076,-500.0,0.00010277,2]
[400431038,1767546521110,-526.41090175,0.00010277,2]
[400431039,1767546521141,-500.0,0.00010277,2]
[400431040,1767546521171,-500.0,0.00010277,2]
[400431041,1767546521201,-500.0,0.00010277,2]
[400431042,1767546521232,-500.0,0.00010277,2]
[400431043,1767546521262,-500.0,0.00010277,2]
[400431044,1767546521292,-353.18187717,0.00010277,2]
[400431045,1767546521322,-500.0,0.00010277,2]
[400431046,1767546521352,-562.93107262,0.00010277,2]
[400431047,1767546521513,-114.96229692,0.00010278,2]
[400431048,1767546531395,-10000.01,0.00010278,2]
[400431049,1767546531559,-160.3,9.672e-05,2]
[400431050,1767546531608,-9679.41,0.00010278,2]
[400431051,1767546541660,-5000.0,9.93e-05,2]
[400431052,1767546541698,-0.01,0.0001003,2]
[400431053,1767546541899,-183.19,0.0001003,2]
[400431102,1767546638407,-300.0,0.00010276,2]
[400431103,1767546638417,-260.06533768,0.00010276,2]
[400431104,1767546638429,-39.93466232,0.00010276,2]
[400431105,1767546638438,-388.91995412,0.00010276,2]
[400431133,1767546640566,-175.08004588,0.00010276,2]
[400431135,1767546640576,-500.0,0.00010277,2]
[400431136,1767546640586,-500.0,0.00010277,2]
[400431137,1767546640595,-500.0,0.00010277,2]
[400431138,1767546640607,-500.0,0.00010277,2]
[400431139,1767546640621,-234.55594978,0.00010277,2]
[400431140,1767546640631,-500.0,0.00010277,2]
[400431141,1767546640640,-66866.66445439,0.00010278,2]
[400431142,1767546640662,-15000.03759676,0.00010278,2]
[400431200,1767546646544,-647.36917147,0.00010278,2]
[400431202,1767546646555,-9063.24479593,0.00010278,2]
[400431371,1767546666623,187.34,8.593e-05,2]
[400431372,1767546667192,234.18,8.951e-05,2]
[400431373,1767546667436,281.02,9.309e-05,2]
[400431374,1767546667845,327.85,9.667e-05,2]
[400431375,1767546668247,374.69,0.00010025,2]
[400431387,1767546723500,-269.82,0.00010073,2]
[400431388,1767546737259,173.72,9.301e-05,2]
[400431389,1767546737819,202.67,9.659e-05,2]
[400431390,1767546738213,231.63,0.00010016,2]
[400431436,1767546806378,152.59,8.936e-05,2]
[400431437,1767546806790,183.11,9.294e-05,2]
[400431438,1767546807217,213.63,9.651e-05,2]
[400431439,1767546807607,244.15,0.00010009,2]
[400431441,1767546876461,156.1,9.044e-05,2]
[400431442,1767546877109,195.13,9.421e-05,2]
[400431443,1767546877534,234.16,9.797e-05,2]
[400431445,1767546935498,800.0,9.996e-05,2]
[400431447,1767546948066,157.88,9.177e-05,2]
[400431448,1767546948491,189.45,9.544e-05,2]
[400431449,1767546948891,221.03,9.911e-05,2]
[400431450,1767546970766,495.6797629,9.469e-05,2]
[400431452,1767546996189,-469.67804233,0.00010076,2]
[400431453,1767546999502,7550.5802371,9.275e-05,2]
[400431454,1767546999524,10000.01,9.275e-05,2]
[400431455,1767546999547,10000.01,9.275e-05,2]
[400431456,1767546999569,3408.9563482,9.275e-05,2]
[400431458,1767547017185,151.7,8.211e-05,2]
[400431459,1767547017583,202.27,8.568e-05,2]
[400431460,1767547017988,-330.32195767,0.00010076,2]
[400431461,1767547018049,252.83,8.925e-05,2]
[400431462,1767547018508,303.4,9.282e-05,2]
[400431463,1767547018909,353.97,9.639e-05,2]
[400431464,1767547019298,404.53,9.995e-05,2]
[400431466,1767547037982,5000.0,0.00010076,2]
[400431467,1767547088273,175.97,9.272e-05,2]
[400431468,1767547088674,205.3,9.629e-05,2]
[400431469,1767547089073,234.63,9.986e-05,2]
[400431472,1767547157963,150.43,9.602e-05,2]
[400431473,1767547158373,171.92,9.957e-05,2]
[400431474,1767547184198,322.5710955,0.00010016,2]
[400431475,1767547206889,157.1217886,0.0001003,2]
[400431477,1767547294772,156.49,9.963e-05,2]
[400431478,1767547322648,167.78080906,0.00010002,2]
[400431479,1767547327255,157.1217886,0.00010002,2]
[400431486,1767547442648,167.78080906,0.00010002,2]
[400431487,1767547562594,167.78080906,0.00010002,2]
[400431507,1767547693827,187.13836179,0.0001,2]
[400431510,1767547733180,9645.09082915,9.185e-05,2]
[400431511,1767547733202,354.90917085,9.185e-05,2]
[400431524,1767547765901,5000.0,0.00010076,2]
[400431536,1767547784298,200.0,0.00010003,2]
[400431537,1767547788782,4445.10082915,0.00010076,2]
[400431538,1767547788805,254.90917085,0.00010076,2]
[400431554,1767547823429,184.8,8.158e-05,2]
[400431555,1767547823798,277.2,8.529e-05,2]
[400431556,1767547824223,369.6,8.9e-05,2]
[400431557,1767547824660,462.0,9.27e-05,2]
[400431558,1767547825052,554.4,9.641e-05,2]
[400431559,1767547825483,646.8,0.00010012,2]
[400431565,1767547832454,-464.1998248,0.0001014,2]
[400431566,1767547832465,-195.39746407,0.0001014,2]
[400431567,1767547832474,-562.0,0.0001014,2]
[400431568,1767547832484,-368.57291313,0.00010153,2]
[400431569,1767547832494,-300.0,0.00010164,2]
[400431570,1767547832504,-300.0,0.00010164,2]
[400431571,1767547832513,-300.0,0.00010164,2]
[400431572,1767547832523,-50000.0,0.00010165,2]
[400431573,1767547832533,-1200.0,0.00010165,2]
[400431574,1767547832542,-500.0,0.00010165,2]
[400431575,1767547832552,-500.0,0.00010165,2]
[400431576,1767547832562,-500.0,0.00010165,2]
[400431577,1767547832572,-500.0,0.00010165,2]
[400431578,1767547832581,-500.0,0.00010165,2]
[400431579,1767547832591,-500.0,0.00010165,2]
[400431580,1767547832600,-500.0,0.00010165,2]
[400431581,1767547832610,-500.0,0.00010165,2]
[400431582,1767547832619,-500.0,0.00010165,2]
[400431583,1767547832629,-300.47772842,0.00010165,2]
[400431584,1767547832638,-500.0,0.00010165,2]
[400431585,1767547832648,-500.0,0.00010165,2]
[400431586,1767547832658,-500.0,0.00010165,2]
[400431587,1767547832668,-300.0,0.00010165,2]
[400431588,1767547832678,-47292.28323763,0.00010167,2]
[400431589,1767547832690,-1420.2,0.00010167,2]
[400431631,1767547838540,-500.0,0.00010164,2]
[400431633,1767547838550,-96.42230822,0.00010164,2]
[400431635,1767547838561,-354.37501678,0.00010164,2]
[400431637,1767547838573,-49.202675,0.00010164,2]
[400431639,1767547838582,-857.56735865,0.00010167,2]
[400431643,1767547838618,-500.0,0.00010164,2]
[400431646,1767547838629,-1026.84513575,0.00010167,2]
[400431703,1767547898442,233.29,7.247e-05,2]
[400431705,1767547898849,349.93,7.576e-05,2]
[400431706,1767547899249,466.58,7.906e-05,2]
[400431707,1767547899689,583.22,8.235e-05,2]
[400431708,1767547900090,699.87,8.565e-05,2]
[400431709,1767547900583,816.51,8.894e-05,2]
[400431710,1767547900997,933.15,9.223e-05,2]
[400431711,1767547901882,1049.8,9.553e-05,2]
[400431712,1767547902369,1166.44,9.882e-05,2]
[400431743,1767547973900,241.01,8.383e-05,2]
[400431753,1767547974385,361.51,8.764e-05,2]
[400431768,1767547974799,348.99082915,9.145e-05,2]
[400431769,1767547974823,133.01917085,9.145e-05,2]
[400431775,1767547975209,602.52,9.526e-05,2]
[400431785,1767547975661,723.02,9.908e-05,2]
[400431838,1767548008609,5051.16334339,0.00010031,2]
[400431839,1767548013411,312.32435751,9.321e-05,2]
[400431840,1767548015537,1248.04813263,9.815e-05,2]
[400431849,1767548052052,165.9,7.861e-05,2]
[400431852,1767548052469,331.8,8.236e-05,2]
[400431855,1767548052864,497.71,8.61e-05,2]
[400431858,1767548053300,663.61,8.984e-05,2]
[400431861,1767548053763,829.51,9.359e-05,2]
[400431864,1767548054172,899.94416647,9.733e-05,2]
[400431865,1767548054196,95.46583353,9.733e-05,2]
[400431873,1767548128771,187.37,8.071e-05,2]
[400431874,1767548129179,374.74,8.455e-05,2]
[400431875,1767548129590,562.11,8.839e-05,2]
[400431876,1767548130040,749.47,9.224e-05,2]
[400431877,1767548130533,936.84,9.608e-05,2]
[400431878,1767548130984,1124.21,9.992e-05,2]
[400431883,1767548206996,274.58,8.459e-05,2]
[400431884,1767548207380,411.87,8.844e-05,2]
[400431885,1767548207792,549.16,9.228e-05,2]
[400431886,1767548208448,686.45,9.613e-05,2]
[400431887,1767548208640,823.74,9.997e-05,2]
[400431891,1767548283303,204.69,8.281e-05,2]
[400431892,1767548283705,307.03,8.658e-05,2]
[400431893,1767548284106,409.37,9.034e-05,2]
[400431894,1767548284501,511.72,9.411e-05,2]
[400431895,1767548284886,614.06,9.787e-05,2]
[400431896,1767548359638,152.59,8.238e-05,2]
[400431897,1767548360025,228.88,8.612e-05,2]
[400431898,1767548360447,305.17,8.987e-05,2]
[400431899,1767548360864,381.46,9.361e-05,2]
[400431900,1767548361283,109.03416647,9.736e-05,2]
[400431901,1767548361306,348.72583353,9.736e-05,2]
[400431904,1767548411605,4720.0915282,9.164e-05,2]
[400431907,1767548426576,3968.03,0.00010076,2]
[400431908,1767548434957,170.62,8.608e-05,2]
[400431909,1767548435411,227.49,8.983e-05,2]
[400431910,1767548435795,284.36,9.357e-05,2]
[400431911,1767548436230,280.69263827,9.731e-05,2]
[400431912,1767548436255,60.54736173,9.731e-05,2]
[400431913,1767548443038,1122.84729356,0.00010076,2]
[400431914,1767548450861,5000.0,0.00010076,2]
[400431915,1767548470783,3816.61534471,0.00010067,2]
[400431916,1767548470812,10000.01,0.00010067,2]
[400431917,1767548470840,10000.01,0.00010067,2]
[400431918,1767548470868,10000.01,0.00010067,2]
[400431919,1767548470894,10000.01,0.00010067,2]
[400431920,1767548470924,10000.01,0.00010067,2]
[400431921,1767548481258,-155.20132184,0.00010067,2]
[400431922,1767548483397,-237.08053768,0.00010067,2]
[400431923,1767548485977,-587.34039078,0.00010067,2]
[400431924,1767548487388,-244.17662665,0.00010067,2]
[400431925,1767548490008,-653.60361348,0.00010067,2]
[400431926,1767548492436,-205.74623607,0.00010067,2]
[400431929,1767548494810,-412.576898,0.00010067,2]
[400431930,1767548497304,-173.31164079,9.966e-05,2]
[400431931,1767548500488,-155.84241914,9.966e-05,2]
[400431932,1767548503276,-4670.84594007,9.966e-05,2]
[400431933,1767548503851,-631.87,0.00010067,2]
[400431934,1767548506546,-315.35540131,0.00010067,2]
[400431935,1767548507308,308.34,8.039e-05,2]
[400431936,1767548507707,349.97811986,8.422e-05,2]
[400431937,1767548507730,266.70188014,8.422e-05,2]
[400431938,1767548508207,925.02,8.804e-05,2]
[400431939,1767548508614,1233.36,9.187e-05,2]
[400431940,1767548508930,-222.47987182,0.00010067,2]
[400431941,1767548509047,1541.7,9.57e-05,2]
[400431942,1767548509461,1850.03,9.953e-05,2]
[400431943,1767548511001,-342.87325689,0.00010067,2]
[400431944,1767548513014,-348.52789711,0.00010067,2]
[400431945,1767548513561,4183.19811986,0.00010067,2]
[400431946,1767548513584,816.80188014,0.00010067,2]
[400431947,1767548514517,-183.62270644,0.00010067,2]
[400431948,1767548516129,-161.88226147,0.00010067,2]
[400431949,1767548517852,-205.10608061,0.00010067,2]
[400431950,1767548520033,-160.77133971,0.00010067,2]
[400431951,1767548521625,5000.0,0.00010067,2]
[400431952,1767548522501,300.0,0.00010066,2]
[400431953,1767548524265,-478.15813753,0.00010067,2]
[400431954,1767548525811,-223.52483674,0.00010067,2]
[400431955,1767548527441,-642.48941436,0.00010067,2]
[400431956,1767548532530,-437.1,0.00010067,2]
[400431957,1767548534013,-349.60058564,0.00010067,2]
[400431959,1767548537766,3883.20811986,0.00010067,2]
[400431960,1767548537787,1116.79188014,0.00010067,2]
[400431962,1767548545948,5000.0,0.00010067,2]
[400431963,1767548551790,500.0,0.00010066,2]
[400431964,1767548551827,500.0,0.00010066,2]
[400431965,1767548551922,177.73739042,0.00010066,2]
[400431966,1767548552400,500.0,0.00010066,2]
[400431967,1767548552476,500.0,0.00010066,2]
[400431968,1767548552512,500.0,0.00010066,2]
[400431969,1767548552557,500.0,0.00010066,2]
[400431970,1767548552608,500.0,0.00010066,2]
[400431971,1767548552668,205.48072944,0.00010066,2]
[400431972,1767548552691,294.51927056,0.00010066,2]
[400431973,1767548552765,621.07400157,0.00010066,2]
[400431974,1767548552837,500.0,0.00010066,2]
[400431975,1767548552870,500.0,0.00010066,2]
[400431976,1767548552918,500.0,0.00010066,2]
[400431978,1767548555793,500.0,0.00010066,2]
[400431979,1767548555822,500.0,0.00010066,2]
[400431980,1767548555856,500.0,0.00010066,2]
[400431981,1767548555902,476.7682238,0.00010066,2]
[400431982,1767548555931,500.0,0.00010066,2]
[400431983,1767548555959,500.0,0.00010066,2]
[400431984,1767548556029,444.14734774,0.00010066,2]
[400431985,1767548556072,500.0,0.00010066,2]
[400431986,1767548556126,500.0,0.00010066,2]
[400431987,1767548556173,361.14931919,0.00010066,2]